[Event "Late-Titled-Tuesday-Blitz-March-05-2024"]
[Site "Chess.com"]
[Date "2024.03.05"]
[Round "7"]
[White "Byniolus"]
[Black "stollenmonster"]
[Result "0-1"]
[WhiteElo "2779"]
[BlackElo "2884"]
[TimeControl "180+1"]
[EndTime "15:15:15 PST"]
[Termination "stollenmonster won by resignation"]

1. d4 {[%clk 0:03:00.9]} 1... Nf6 {[%clk 0:03:00.3]} 2. Nf3 {[%clk 0:03:01]}
2... e6 {[%clk 0:03:00.4]} 3. Bf4 {[%clk 0:03:01.1]} 3... d5 {[%clk 0:03:00.8]}
4. e3 {[%clk 0:03:01.5]} 4... Be7 {[%clk 0:03:00.3]} 5. Nbd2 {[%clk 0:03:01.5]}
5... Ne4 {[%clk 0:03:00.8]} 6. Nxe4 {[%clk 0:03:01.1]} 6... dxe4 {[%clk
0:03:01.7]} 7. Nd2 {[%clk 0:03:02]} 7... f5 {[%clk 0:03:01.9]} 8. f3 {[%clk
0:02:41.2]} 8... exf3 {[%clk 0:03:02.8]} 9. Qxf3 {[%clk 0:02:36.1]} 9... O-O
{[%clk 0:03:02.8]} 10. O-O-O {[%clk 0:02:34.8]} 10... g5 {[%clk 0:03:00.2]} 11.
Bg3 {[%clk 0:02:30.8]} 11... Nc6 {[%clk 0:02:55.3]} 12. c3 {[%clk 0:02:22.8]}
12... Bd6 {[%clk 0:02:40.3]} 13. h4 {[%clk 0:02:08.7]} 13... g4 {[%clk
0:02:39.5]} 14. Qf2 {[%clk 0:02:08.6]} 14... Bd7 {[%clk 0:02:28.8]} 15. Bxd6
{[%clk 0:02:05]} 15... cxd6 {[%clk 0:02:28.4]} 16. d5 {[%clk 0:02:05.9]} 16...
Ne5 {[%clk 0:02:23.8]} 17. Nc4 {[%clk 0:01:45.3]} 17... Nxc4 {[%clk 0:02:20.9]}
18. Bxc4 {[%clk 0:01:45.1]} 18... e5 {[%clk 0:02:21.6]} 19. h5 {[%clk
0:01:39.7]} 19... Rc8 {[%clk 0:02:19.6]} 20. Bb3 {[%clk 0:01:37.5]} 20... b5
{[%clk 0:02:16.9]} 21. e4 {[%clk 0:01:28.2]} 21... f4 {[%clk 0:02:15.2]} 22.
Qxa7 {[%clk 0:01:28.2]} 22... b4 {[%clk 0:02:09.2]} 23. c4 {[%clk 0:01:23.1]}
23... Bb5 {[%clk 0:02:00.7]} 24. Kb1 {[%clk 0:01:05.7]} 24... Bxc4 {[%clk
0:01:58.9]} 25. h6 {[%clk 0:01:01.5]} 25... Rf7 {[%clk 0:01:55.7]} 26. Qa4
{[%clk 0:01:02.1]} 26... Be2 {[%clk 0:01:40.1]} 27. Qxb4 {[%clk 0:00:49.4]}
27... Bxd1 {[%clk 0:01:32.8]} 28. Bxd1 {[%clk 0:00:50.3]} 28... f3 {[%clk
0:01:32.8]} 29. gxf3 {[%clk 0:00:48.1]} 29... gxf3 {[%clk 0:01:33.7]} 30. Qd2
{[%clk 0:00:40]} 30... Kh8 {[%clk 0:01:21.2]} 31. Rf1 {[%clk 0:00:37.5]} 31...
Qh4 {[%clk 0:01:09.4]} 32. Qd3 {[%clk 0:00:26.3]} 32... Qxh6 {[%clk 0:01:02]}
33. a4 {[%clk 0:00:27.2]} 33... Qc1+ {[%clk 0:00:53.2]} 34. Ka2 {[%clk
0:00:27.4]} 34... f2 {[%clk 0:00:37.3]} 35. Qh3 {[%clk 0:00:17.8]} 35... Rb8
{[%clk 0:00:28.5]} 36. Bb3 {[%clk 0:00:15.9]} 36... Qf4 {[%clk 0:00:24.9]} 37.
Qe6 {[%clk 0:00:10]} 37... Rfb7 {[%clk 0:00:18.5]} 38. Rh1 {[%clk 0:00:02.5]}
38... f1=Q {[%clk 0:00:07.4]} 39. Rxf1 {[%clk 0:00:02.8]} 39... Qxf1 {[%clk
0:00:08.3]} 40. Qxd6 {[%clk 0:00:03.6]} 40... Qf4 {[%clk 0:00:08.5]} 41. Qa3
{[%clk 0:00:01.2]} 41... Rxb3 {[%clk 0:00:08.6]} 42. Qxb3 {[%clk 0:00:02]} 42...
Rxb3 {[%clk 0:00:08.1]} 43. Kxb3 {[%clk 0:00:02.9]} 0-1

[Event "Late-Titled-Tuesday-Blitz-March-05-2024"]
[Site "Chess.com"]
[Date "2024.03.05"]
[Round "7"]
[White "kalxandria"]
[Black "Jahonas"]
[Result "0-1"]
[WhiteElo "2186"]
[BlackElo "2386"]
[TimeControl "180+1"]
[EndTime "15:15:23 PST"]
[Termination "Jahonas won by checkmate"]

1. e4 {[%clk 0:03:00.9]} 1... c6 {[%clk 0:03:00.1]} 2. d4 {[%clk 0:02:59.8]}
2... d5 {[%clk 0:03:00.4]} 3. exd5 {[%clk 0:02:58.7]} 3... cxd5 {[%clk
0:03:00.4]} 4. Nf3 {[%clk 0:02:57.2]} 4... Nc6 {[%clk 0:03:00.6]} 5. c3 {[%clk
0:02:52]} 5... Nf6 {[%clk 0:03:00.4]} 6. Bd3 {[%clk 0:02:51.4]} 6... g6 {[%clk
0:03:00.6]} 7. Bf4 {[%clk 0:02:49.8]} 7... Bg7 {[%clk 0:03:00.6]} 8. O-O {[%clk
0:02:46.4]} 8... O-O {[%clk 0:03:00.5]} 9. h3 {[%clk 0:02:44.1]} 9... Bd7 {[%clk
0:02:56.4]} 10. Nbd2 {[%clk 0:02:42]} 10... Qc8 {[%clk 0:02:55.8]} 11. Qe2
{[%clk 0:02:33.7]} 11... Bf5 {[%clk 0:02:49.1]} 12. Ne5 {[%clk 0:02:25.6]} 12...
Bxd3 {[%clk 0:02:11.9]} 13. Qxd3 {[%clk 0:02:22]} 13... e6 {[%clk 0:02:04.4]}
14. Ndf3 {[%clk 0:02:15.8]} 14... Ne4 {[%clk 0:02:01.9]} 15. Nxc6 {[%clk
0:02:08.9]} 15... bxc6 {[%clk 0:01:54]} 16. Ne5 {[%clk 0:02:07.4]} 16... f6
{[%clk 0:01:47.3]} 17. Ng4 {[%clk 0:02:05.2]} 17... h5 {[%clk 0:01:44.2]} 18.
Ne3 {[%clk 0:01:53.6]} 18... e5 {[%clk 0:01:43.3]} 19. Bh2 {[%clk 0:01:50.1]}
19... exd4 {[%clk 0:01:39.7]} 20. cxd4 {[%clk 0:01:44.3]} 20... f5 {[%clk
0:01:21.3]} 21. Rac1 {[%clk 0:01:42.4]} 21... Qb7 {[%clk 0:01:16.2]} 22. b3
{[%clk 0:01:36.4]} 22... Rae8 {[%clk 0:01:15.1]} 23. f3 {[%clk 0:01:32.4]} 23...
Ng5 {[%clk 0:01:09.5]} 24. g4 {[%clk 0:01:23.3]} 24... Qb4 {[%clk 0:00:52.4]}
25. Kg2 {[%clk 0:01:15.2]} 25... Qxd4 {[%clk 0:00:48.4]} 26. Qxd4 {[%clk
0:00:58.6]} 26... Bxd4 {[%clk 0:00:49.3]} 27. Nc2 {[%clk 0:00:52.4]} 27... Re2+
{[%clk 0:00:48.7]} 28. Kh1 {[%clk 0:00:47.6]} 28... Bb2 {[%clk 0:00:46.7]} 29.
Bf4 {[%clk 0:00:21.1]} 29... Bxc1 {[%clk 0:00:44.1]} 30. Rxc1 {[%clk 0:00:20.6]}
30... Nxh3 {[%clk 0:00:40.2]} 31. Bh6 {[%clk 0:00:17.9]} 31... Rfe8 {[%clk
0:00:37.2]} 32. Nd4 {[%clk 0:00:14.1]} 32... Re1+ {[%clk 0:00:35.1]} 33. Rxe1
{[%clk 0:00:14.7]} 33... Rxe1+ {[%clk 0:00:35.4]} 34. Kg2 {[%clk 0:00:15.3]}
34... hxg4 {[%clk 0:00:35.1]} 35. fxg4 {[%clk 0:00:15.1]} 35... fxg4 {[%clk
0:00:35.4]} 36. Nxc6 {[%clk 0:00:15.2]} 36... Kh7 {[%clk 0:00:32.7]} 37. Bd2
{[%clk 0:00:13.8]} 37... Re2+ {[%clk 0:00:32.9]} 38. Kg3 {[%clk 0:00:13.2]}
38... Rxd2 {[%clk 0:00:33.8]} 39. Kxg4 {[%clk 0:00:14]} 39... Nf2+ {[%clk
0:00:33.6]} 40. Kf3 {[%clk 0:00:14.1]} 40... Ne4 {[%clk 0:00:33.6]} 41. Ke3
{[%clk 0:00:14.3]} 41... Rxa2 {[%clk 0:00:33.6]} 42. Ne5 {[%clk 0:00:14.4]}
42... Rb2 {[%clk 0:00:33.4]} 43. Nd7 {[%clk 0:00:10.2]} 43... Rxb3+ {[%clk
0:00:33.3]} 44. Kd4 {[%clk 0:00:11.1]} 44... g5 {[%clk 0:00:32.5]} 45. Kxd5
{[%clk 0:00:11.4]} 45... Nc3+ {[%clk 0:00:30.8]} 46. Kc4 {[%clk 0:00:11.3]}
46... Ra3 {[%clk 0:00:29.8]} 47. Kb4 {[%clk 0:00:12]} 47... Nb1 {[%clk
0:00:29.4]} 48. Ne5 {[%clk 0:00:10.3]} 48... Kh6 {[%clk 0:00:29]} 49. Nf7+
{[%clk 0:00:09.9]} 49... Kh5 {[%clk 0:00:29.1]} 50. Ne5 {[%clk 0:00:09.9]} 50...
g4 {[%clk 0:00:29.3]} 51. Nc4 {[%clk 0:00:08.5]} 51... g3 {[%clk 0:00:29.4]} 52.
Ne5 {[%clk 0:00:07.2]} 52... g2 {[%clk 0:00:27.4]} 53. Kb5 {[%clk 0:00:04.5]}
53... g1=Q {[%clk 0:00:25.9]} 54. Nc4 {[%clk 0:00:05.4]} 54... Rb3+ {[%clk
0:00:25]} 55. Kc6 {[%clk 0:00:05.2]} 55... Qg6+ {[%clk 0:00:24.4]} 56. Nd6
{[%clk 0:00:05]} 56... Rb6+ {[%clk 0:00:24.2]} 57. Kc5 {[%clk 0:00:04.8]} 57...
Qxd6+ {[%clk 0:00:24.2]} 58. Kc4 {[%clk 0:00:05.7]} 58... Rb4# {[%clk
0:00:24.3]} 0-1

[Event "Late-Titled-Tuesday-Blitz-March-05-2024"]
[Site "Chess.com"]
[Date "2024.03.05"]
[Round "7"]
[White "LUISMIGUELOV"]
[Black "Viktor_Poddubnyi"]
[Result "1-0"]
[WhiteElo "2168"]
[BlackElo "2255"]
[TimeControl "180+1"]
[EndTime "15:15:24 PST"]
[Termination "LUISMIGUELOV won on time"]

1. d4 {[%clk 0:03:00.9]} 1... g6 {[%clk 0:03:00.1]} 2. c3 {[%clk 0:03:00.8]}
2... Bg7 {[%clk 0:03:00.6]} 3. Bg5 {[%clk 0:02:59.2]} 3... Nf6 {[%clk
0:03:00.2]} 4. Nd2 {[%clk 0:02:58.7]} 4... d6 {[%clk 0:02:59.7]} 5. e4 {[%clk
0:02:58.5]} 5... O-O {[%clk 0:02:59.9]} 6. Bd3 {[%clk 0:02:57.5]} 6... c5 {[%clk
0:03:00.1]} 7. d5 {[%clk 0:02:56.8]} 7... e6 {[%clk 0:02:51.1]} 8. dxe6 {[%clk
0:02:53]} 8... Bxe6 {[%clk 0:02:48]} 9. Ngf3 {[%clk 0:02:51.7]} 9... Nc6 {[%clk
0:02:47.8]} 10. O-O {[%clk 0:02:50.8]} 10... Qc7 {[%clk 0:02:47.8]} 11. Re1
{[%clk 0:02:48.8]} 11... Rfe8 {[%clk 0:02:47.7]} 12. Qc2 {[%clk 0:02:45.3]}
12... Rad8 {[%clk 0:02:46.5]} 13. a3 {[%clk 0:02:43.5]} 13... a6 {[%clk
0:02:45.7]} 14. Rad1 {[%clk 0:02:42.3]} 14... b5 {[%clk 0:02:44]} 15. h3 {[%clk
0:02:36.9]} 15... h6 {[%clk 0:02:42.9]} 16. Bh4 {[%clk 0:02:33.6]} 16... Qb7
{[%clk 0:02:30.4]} 17. Nf1 {[%clk 0:02:29.4]} 17... c4 {[%clk 0:02:20.5]} 18.
Be2 {[%clk 0:02:25.8]} 18... g5 {[%clk 0:02:04.5]} 19. Bg3 {[%clk 0:02:24.4]}
19... d5 {[%clk 0:01:52.6]} 20. exd5 {[%clk 0:02:19.6]} 20... Nxd5 {[%clk
0:01:50.6]} 21. N1d2 {[%clk 0:01:55.4]} 21... f5 {[%clk 0:01:48.7]} 22. Bf1
{[%clk 0:01:07.5]} 22... f4 {[%clk 0:01:47.5]} 23. Bh2 {[%clk 0:01:07.2]} 23...
Qf7 {[%clk 0:01:47.4]} 24. Ne4 {[%clk 0:00:52.4]} 24... Bf5 {[%clk 0:01:45.1]}
25. Nfd2 {[%clk 0:00:45]} 25... Kh8 {[%clk 0:01:38.7]} 26. Nd6 {[%clk
0:00:33.8]} 26... Rxd6 {[%clk 0:01:08.2]} 27. Rxe8+ {[%clk 0:00:31.1]} 27... Kh7
{[%clk 0:01:08.4]} 28. Re4 {[%clk 0:00:26.8]} 28... Nf6 {[%clk 0:00:58]} 29. f3
{[%clk 0:00:20.5]} 29... Bxe4 {[%clk 0:00:54.3]} 30. Nxe4 {[%clk 0:00:20.1]}
30... Rd3 {[%clk 0:00:17.5]} 31. Bxd3 {[%clk 0:00:18.4]} 31... cxd3 {[%clk
0:00:18.4]} 32. Nxf6+ {[%clk 0:00:16.5]} 32... Qxf6 {[%clk 0:00:16.4]} 33. Qxd3+
{[%clk 0:00:16.7]} 33... Kh8 {[%clk 0:00:14.9]} 34. Qd6 {[%clk 0:00:15.9]} 34...
Qxd6 {[%clk 0:00:09.7]} 35. Rxd6 {[%clk 0:00:15.3]} 35... Ne5 {[%clk 0:00:07.8]}
36. Rxa6 {[%clk 0:00:14.7]} 36... Nc4 {[%clk 0:00:08.2]} 37. b3 {[%clk
0:00:13.4]} 37... Nd2 {[%clk 0:00:07]} 38. a4 {[%clk 0:00:11.6]} 38... bxa4
{[%clk 0:00:06.6]} 39. bxa4 {[%clk 0:00:10.8]} 39... Bxc3 {[%clk 0:00:06.9]} 40.
Kf2 {[%clk 0:00:08.4]} 40... Nb3 {[%clk 0:00:04.3]} 41. Ke2 {[%clk 0:00:07.2]}
41... Kg7 {[%clk 0:00:02.1]} 42. Bg1 {[%clk 0:00:04.7]} 1-0

[Event "Late-Titled-Tuesday-Blitz-March-05-2024"]
[Site "Chess.com"]
[Date "2024.03.05"]
[Round "7"]
[White "IngOscarArdila"]
[Black "N_Mullodzhanov"]
[Result "1/2-1/2"]
[WhiteElo "2327"]
[BlackElo "2498"]
[TimeControl "180+1"]
[EndTime "15:15:26 PST"]
[Termination "Game drawn by repetition"]

1. d4 {[%clk 0:02:59.7]} 1... Nf6 {[%clk 0:02:59.8]} 2. c3 {[%clk 0:02:59.3]}
2... d5 {[%clk 0:02:59.2]} 3. Nd2 {[%clk 0:03:00.2]} 3... g6 {[%clk 0:02:59.4]}
4. Ngf3 {[%clk 0:03:01.1]} 4... Bg7 {[%clk 0:02:59.8]} 5. e3 {[%clk 0:03:01.6]}
5... O-O {[%clk 0:03:00.1]} 6. Be2 {[%clk 0:03:02.1]} 6... c5 {[%clk 0:02:59.2]}
7. O-O {[%clk 0:03:01.9]} 7... cxd4 {[%clk 0:02:59.2]} 8. exd4 {[%clk
0:03:01.7]} 8... Nc6 {[%clk 0:02:59.3]} 9. Re1 {[%clk 0:03:02]} 9... Qc7 {[%clk
0:02:59.4]} 10. h3 {[%clk 0:02:58.9]} 10... Ne4 {[%clk 0:02:58.5]} 11. Nxe4
{[%clk 0:02:55.4]} 11... dxe4 {[%clk 0:02:59.4]} 12. Nd2 {[%clk 0:02:55.6]}
12... f5 {[%clk 0:02:56.8]} 13. Bc4+ {[%clk 0:02:46]} 13... e6 {[%clk
0:02:53.7]} 14. b4 {[%clk 0:02:41.6]} 14... Rd8 {[%clk 0:02:38.8]} 15. Qb3
{[%clk 0:02:40.9]} 15... Qe7 {[%clk 0:02:23.8]} 16. Ba3 {[%clk 0:02:38.4]} 16...
Qf6 {[%clk 0:02:16.6]} 17. Nf1 {[%clk 0:02:31.7]} 17... a6 {[%clk 0:02:16]} 18.
Ne3 {[%clk 0:02:19.3]} 18... b5 {[%clk 0:02:13.7]} 19. Bf1 {[%clk 0:02:17.6]}
19... Ne7 {[%clk 0:02:12.3]} 20. Rad1 {[%clk 0:02:13.8]} 20... Bb7 {[%clk
0:02:10.5]} 21. Bb2 {[%clk 0:02:09.7]} 21... Rac8 {[%clk 0:01:39.6]} 22. c4
{[%clk 0:02:08.2]} 22... bxc4 {[%clk 0:01:39.9]} 23. Bxc4 {[%clk 0:02:08.1]}
23... Nd5 {[%clk 0:01:38]} 24. a4 {[%clk 0:01:56.2]} 24... h5 {[%clk 0:01:36]}
25. b5 {[%clk 0:01:55.4]} 25... axb5 {[%clk 0:01:34.2]} 26. axb5 {[%clk
0:01:56.3]} 26... f4 {[%clk 0:01:21]} 27. Nxd5 {[%clk 0:01:55.5]} 27... Bxd5
{[%clk 0:01:12]} 28. Bxd5 {[%clk 0:01:54.7]} 28... exd5 {[%clk 0:01:12.9]} 29.
Rxe4 {[%clk 0:01:49.7]} 29... f3 {[%clk 0:01:03.6]} 30. Re3 {[%clk 0:01:48.8]}
30... fxg2 {[%clk 0:00:59.9]} 31. Kxg2 {[%clk 0:01:49.7]} 31... Rc4 {[%clk
0:00:52.5]} 32. Rg3 {[%clk 0:01:42.2]} 32... Rf8 {[%clk 0:00:51.9]} 33. Qf3
{[%clk 0:01:38.3]} 33... Qxf3+ {[%clk 0:00:45.6]} 34. Rxf3 {[%clk 0:01:33.3]}
34... Rxf3 {[%clk 0:00:46.5]} 35. Kxf3 {[%clk 0:01:33.3]} 35... Rb4 {[%clk
0:00:47.2]} 36. Bc1 {[%clk 0:01:18.5]} 36... Bxd4 {[%clk 0:00:38.9]} 37. Be3
{[%clk 0:01:09.2]} 37... Bxe3 {[%clk 0:00:36.8]} 38. Kxe3 {[%clk 0:01:07.7]}
38... Rxb5 {[%clk 0:00:35.7]} 39. Kd4 {[%clk 0:01:07.5]} 39... Kf7 {[%clk
0:00:32.2]} 40. Ke5 {[%clk 0:01:04.1]} 40... Rb4 {[%clk 0:00:27.3]} 41. Rxd5
{[%clk 0:00:59.3]} 41... Rb3 {[%clk 0:00:22.5]} 42. Rd7+ {[%clk 0:00:53.7]}
42... Ke8 {[%clk 0:00:22.3]} 43. Rd6 {[%clk 0:00:53.4]} 43... Rxh3 {[%clk
0:00:16.2]} 44. Rxg6 {[%clk 0:00:52.6]} 44... Rf3 {[%clk 0:00:16.7]} 45. Ke6
{[%clk 0:00:47.6]} 45... Rxf2 {[%clk 0:00:12.9]} 46. Rh6 {[%clk 0:00:42.9]}
46... Re2+ {[%clk 0:00:10]} 47. Kf6 {[%clk 0:00:42.3]} 47... Rh2 {[%clk
0:00:10.7]} 48. Kg5 {[%clk 0:00:41.4]} 48... Rg2+ {[%clk 0:00:08.4]} 49. Kxh5
{[%clk 0:00:40.7]} 49... Kf7 {[%clk 0:00:09.3]} 50. Ra6 {[%clk 0:00:39.4]} 50...
Rg1 {[%clk 0:00:09.2]} 51. Ra7+ {[%clk 0:00:38.1]} 51... Kf6 {[%clk 0:00:09.1]}
52. Ra6+ {[%clk 0:00:38.4]} 52... Kf5 {[%clk 0:00:09.4]} 53. Ra5+ {[%clk
0:00:38.7]} 53... Kf4 {[%clk 0:00:09.7]} 54. Ra4+ {[%clk 0:00:39.2]} 54... Kf3
{[%clk 0:00:09.9]} 55. Ra3+ {[%clk 0:00:39.6]} 55... Kf2 {[%clk 0:00:10.3]} 56.
Ra2+ {[%clk 0:00:39.9]} 56... Kg3 {[%clk 0:00:10.5]} 57. Ra3+ {[%clk 0:00:40.1]}
57... Kh2 {[%clk 0:00:10.7]} 58. Ra2+ {[%clk 0:00:40.1]} 58... Kh1 {[%clk
0:00:10.8]} 59. Kh4 {[%clk 0:00:38.5]} 59... Rb1 {[%clk 0:00:09.4]} 60. Kh3
{[%clk 0:00:36.1]} 60... Rb3+ {[%clk 0:00:09.5]} 61. Kg4 {[%clk 0:00:36]} 61...
Rb4+ {[%clk 0:00:09.9]} 62. Kg3 {[%clk 0:00:36]} 62... Rb3+ {[%clk 0:00:10.2]}
63. Kg4 {[%clk 0:00:36.2]} 63... Rb4+ {[%clk 0:00:10.7]} 64. Kh3 {[%clk
0:00:36.4]} 64... Rb3+ {[%clk 0:00:10.5]} 65. Kg4 {[%clk 0:00:36.6]} 1/2-1/2

[Event "Late-Titled-Tuesday-Blitz-March-05-2024"]
[Site "Chess.com"]
[Date "2024.03.05"]
[Round "7"]
[White "KorolDimitriy75"]
[Black "sonson28291"]
[Result "0-1"]
[WhiteElo "2395"]
[BlackElo "2267"]
[TimeControl "180+1"]
[EndTime "15:15:26 PST"]
[Termination "sonson28291 won on time"]

1. d4 {[%clk 0:03:00.9]} 1... Nf6 {[%clk 0:02:59.1]} 2. c4 {[%clk 0:03:00.6]}
2... c5 {[%clk 0:02:59]} 3. d5 {[%clk 0:03:00.4]} 3... b5 {[%clk 0:02:59.2]} 4.
Nd2 {[%clk 0:03:00.6]} 4... g6 {[%clk 0:02:58.5]} 5. b3 {[%clk 0:03:00.9]} 5...
Bg7 {[%clk 0:02:54]} 6. Bb2 {[%clk 0:03:01.2]} 6... O-O {[%clk 0:02:52.8]} 7. e4
{[%clk 0:03:01.1]} 7... d6 {[%clk 0:02:53.1]} 8. Ngf3 {[%clk 0:02:57.7]} 8...
Nbd7 {[%clk 0:02:51.6]} 9. h3 {[%clk 0:02:51.6]} 9... Qc7 {[%clk 0:02:49.5]} 10.
Qc2 {[%clk 0:02:40.7]} 10... b4 {[%clk 0:02:43]} 11. Bd3 {[%clk 0:02:38.2]}
11... a5 {[%clk 0:02:42.7]} 12. a4 {[%clk 0:02:37.9]} 12... bxa3 {[%clk
0:02:42.2]} 13. Rxa3 {[%clk 0:02:37.4]} 13... Nb6 {[%clk 0:02:40.1]} 14. O-O
{[%clk 0:02:37.3]} 14... Nfd7 {[%clk 0:02:36.1]} 15. Bxg7 {[%clk 0:02:34.7]}
15... Kxg7 {[%clk 0:02:35.9]} 16. Re1 {[%clk 0:02:34.5]} 16... e5 {[%clk
0:02:28.1]} 17. dxe6 {[%clk 0:02:32.7]} 17... fxe6 {[%clk 0:02:27.9]} 18. Qc3+
{[%clk 0:02:12]} 18... Kg8 {[%clk 0:02:26.9]} 19. Rxa5 {[%clk 0:02:09.6]} 19...
Bb7 {[%clk 0:02:22.2]} 20. Rxa8 {[%clk 0:01:51.7]} 20... Rxa8 {[%clk 0:02:18.4]}
21. e5 {[%clk 0:01:47.3]} 21... d5 {[%clk 0:02:16.6]} 22. Qc2 {[%clk 0:01:37]}
22... Nf8 {[%clk 0:02:13]} 23. h4 {[%clk 0:01:21.3]} 23... Qe7 {[%clk
0:01:49.2]} 24. Ng5 {[%clk 0:01:02.5]} 24... h6 {[%clk 0:01:47.5]} 25. Nh3
{[%clk 0:00:55.9]} 25... Kg7 {[%clk 0:01:47.3]} 26. Nf3 {[%clk 0:00:55.6]} 26...
d4 {[%clk 0:01:44.3]} 27. Be4 {[%clk 0:00:52]} 27... Bxe4 {[%clk 0:01:43.4]} 28.
Qxe4 {[%clk 0:00:50.9]} 28... Ra3 {[%clk 0:01:33.7]} 29. Rb1 {[%clk 0:00:42.9]}
29... Nbd7 {[%clk 0:01:31.2]} 30. Nf4 {[%clk 0:00:35.1]} 30... Qf7 {[%clk
0:01:30.7]} 31. g4 {[%clk 0:00:31.6]} 31... h5 {[%clk 0:00:39]} 32. Ng5 {[%clk
0:00:29.3]} 32... Qe8 {[%clk 0:00:38.4]} 33. gxh5 {[%clk 0:00:25.7]} 33... gxh5
{[%clk 0:00:37.9]} 34. Kg2 {[%clk 0:00:15.9]} 34... Ng6 {[%clk 0:00:37.4]} 35.
Nxh5+ {[%clk 0:00:14.5]} 35... Kh6 {[%clk 0:00:37.3]} 36. Nf6 {[%clk 0:00:12.5]}
36... Nxf6 {[%clk 0:00:35.1]} 37. exf6 {[%clk 0:00:13.4]} 37... e5 {[%clk
0:00:29]} 38. f7 {[%clk 0:00:12.4]} 38... Qe6 {[%clk 0:00:28.1]} 39. Qxg6+
{[%clk 0:00:10.6]} 39... Qxg6 {[%clk 0:00:27.9]} 40. f8=Q+ {[%clk 0:00:10.5]}
40... Kh5 {[%clk 0:00:27]} 41. Qf3+ {[%clk 0:00:09.1]} 41... Kh6 {[%clk
0:00:23.4]} 42. Qf8+ {[%clk 0:00:08.5]} 42... Kh5 {[%clk 0:00:23.3]} 43. Qh8+
{[%clk 0:00:07.6]} 43... Kg4 {[%clk 0:00:21.7]} 44. Qxe5 {[%clk 0:00:06.5]}
44... Qxb1 {[%clk 0:00:20.8]} 45. Qg3+ {[%clk 0:00:04.9]} 45... Kh5 {[%clk
0:00:20.9]} 46. Qf3+ {[%clk 0:00:04]} 46... Kg6 {[%clk 0:00:20.2]} 47. Qf7+
{[%clk 0:00:03.3]} 47... Kh6 {[%clk 0:00:17.8]} 48. Qf6+ {[%clk 0:00:02.8]}
48... Qg6 {[%clk 0:00:17.7]} 49. Qf8+ {[%clk 0:00:02.5]} 49... Kh5 {[%clk
0:00:17.7]} 0-1

[Event "Late-Titled-Tuesday-Blitz-March-05-2024"]
[Site "Chess.com"]
[Date "2024.03.05"]
[Round "7"]
[White "corvachesky"]
[Black "AlexTruskavetsky"]
[Result "0-1"]
[WhiteElo "2503"]
[BlackElo "2695"]
[TimeControl "180+1"]
[EndTime "15:15:27 PST"]
[Termination "AlexTruskavetsky won on time"]

1. d4 {[%clk 0:02:59.5]} 1... Nf6 {[%clk 0:02:55.3]} 2. Nf3 {[%clk 0:03:00.4]}
2... e6 {[%clk 0:02:55.6]} 3. g3 {[%clk 0:02:59.8]} 3... d5 {[%clk 0:02:55.8]}
4. Bg2 {[%clk 0:03:00.2]} 4... Be7 {[%clk 0:02:55.9]} 5. O-O {[%clk 0:02:58.3]}
5... O-O {[%clk 0:02:55.9]} 6. c4 {[%clk 0:02:59]} 6... dxc4 {[%clk 0:02:56.5]}
7. Qc2 {[%clk 0:02:58.8]} 7... a6 {[%clk 0:02:42.8]} 8. a4 {[%clk 0:02:56.4]}
8... h6 {[%clk 0:02:27.6]} 9. Nbd2 {[%clk 0:02:52.3]} 9... Nc6 {[%clk
0:02:25.2]} 10. Nxc4 {[%clk 0:02:40.9]} 10... Nxd4 {[%clk 0:02:15.6]} 11. Nxd4
{[%clk 0:02:41.8]} 11... Qxd4 {[%clk 0:02:15.9]} 12. Rd1 {[%clk 0:02:41.1]}
12... Qa7 {[%clk 0:02:08.6]} 13. Be3 {[%clk 0:02:38.7]} 13... b6 {[%clk
0:02:07.7]} 14. Bxa8 {[%clk 0:02:36.3]} 14... Qxa8 {[%clk 0:02:08.6]} 15. Ne5
{[%clk 0:02:23.4]} 15... Bd6 {[%clk 0:01:52.3]} 16. Nc6 {[%clk 0:01:57.1]} 16...
Bb7 {[%clk 0:01:50.5]} 17. Rac1 {[%clk 0:01:56.9]} 17... Nd5 {[%clk 0:01:50.7]}
18. Bd2 {[%clk 0:01:44.6]} 18... Nf6 {[%clk 0:01:35.8]} 19. b4 {[%clk
0:01:20.5]} 19... a5 {[%clk 0:01:23]} 20. b5 {[%clk 0:01:18.8]} 20... Bc5 {[%clk
0:01:14.2]} 21. Be3 {[%clk 0:01:01.2]} 21... Bxe3 {[%clk 0:00:44.3]} 22. fxe3
{[%clk 0:00:58.6]} 22... Nd5 {[%clk 0:00:40.4]} 23. Kf2 {[%clk 0:00:56]} 23...
f5 {[%clk 0:00:35.2]} 24. Qc4 {[%clk 0:00:46.1]} 24... Qe8 {[%clk 0:00:32.7]}
25. Rxd5 {[%clk 0:00:30.6]} 25... exd5 {[%clk 0:00:32.7]} 26. Qxd5+ {[%clk
0:00:31.5]} 26... Kh8 {[%clk 0:00:32.7]} 27. Rd1 {[%clk 0:00:30.8]} 27... Qh5
{[%clk 0:00:28.2]} 28. h4 {[%clk 0:00:22.9]} 28... Qg4 {[%clk 0:00:20.5]} 29.
Qf3 {[%clk 0:00:21.5]} 29... Qxa4 {[%clk 0:00:19.6]} 30. Qd5 {[%clk 0:00:16.7]}
30... Bxc6 {[%clk 0:00:16.9]} 31. bxc6 {[%clk 0:00:13.8]} 31... Qe4 {[%clk
0:00:14.8]} 32. Qxe4 {[%clk 0:00:13.1]} 32... fxe4+ {[%clk 0:00:15.7]} 33. Kg2
{[%clk 0:00:09.2]} 33... Rf6 {[%clk 0:00:16.6]} 34. Rc1 {[%clk 0:00:05]} 34...
Rd6 {[%clk 0:00:16.6]} 35. Rc4 {[%clk 0:00:04.3]} 35... Kg8 {[%clk 0:00:17.2]}
36. g4 {[%clk 0:00:03.4]} 36... Kf7 {[%clk 0:00:17.6]} 37. Kg3 {[%clk
0:00:03.5]} 37... b5 {[%clk 0:00:16.5]} 38. Rc5 {[%clk 0:00:02.7]} 38... b4
{[%clk 0:00:17]} 39. Rxa5 {[%clk 0:00:02.6]} 39... Rxc6 {[%clk 0:00:17.6]} 40.
Rb5 {[%clk 0:00:03.2]} 40... Rc4 {[%clk 0:00:18]} 41. Kf4 {[%clk 0:00:02.8]}
41... c5 {[%clk 0:00:18.6]} 42. Ke5 {[%clk 0:00:02.6]} 42... Rc3 {[%clk
0:00:18.7]} 43. Kf5 {[%clk 0:00:01.9]} 43... b3 {[%clk 0:00:18.7]} 44. Rb7+
{[%clk 0:00:02.4]} 44... Ke8 {[%clk 0:00:18.9]} 45. Ke6 {[%clk 0:00:02.6]} 45...
Kd8 {[%clk 0:00:19.2]} 46. Kd6 {[%clk 0:00:02.9]} 46... Kc8 {[%clk 0:00:19.8]}
47. Rxg7 {[%clk 0:00:02.1]} 47... c4 {[%clk 0:00:20.4]} 48. Kc6 {[%clk 0:00:02]}
48... Kd8 {[%clk 0:00:20.8]} 49. Rb7 {[%clk 0:00:01.8]} 49... Rc2 {[%clk
0:00:20.4]} 50. Kd5 {[%clk 0:00:01.7]} 50... b2 {[%clk 0:00:19.9]} 51. Kd4
{[%clk 0:00:01.6]} 51... c3 {[%clk 0:00:20.4]} 0-1